fUSD/lending_fUSD_20260331
["ID","MTS","AMOUNT","RATE_DAILY","PERIOD"]
[419140438,1774919351372,-500.0,0.00032876,120]
[419140439,1774919351467,-500.0,0.00032876,120]
[419140440,1774919351561,-500.0,0.00032876,120]
[419140441,1774919351658,-181.30224339,0.00032876,120]
[419140442,1774919351753,-500.0,0.00032876,120]
[419140443,1774919351849,-500.0,0.00032876,120]
[419140444,1774919351941,-500.0,0.00032876,120]
[419140445,1774919352034,-500.0,0.00032876,120]
[419140446,1774919352123,-500.0,0.00032876,120]
[419140447,1774919352212,-211.18088809,0.00032876,120]
[419140448,1774919352305,-260.3619601,0.00032876,120]
[419140449,1774919352396,-6076.98,0.00032876,120]
[419140450,1774919352489,-6076.98,0.00032876,120]
[419140451,1774919352582,-6076.98,0.00032876,120]
[419140452,1774919352673,-6076.98,0.00032876,120]
[419140453,1774919352762,-500.0,0.00032876,120]
[419140454,1774919352851,-6076.98,0.00032876,120]
[419140455,1774919352942,-567.47976288,0.00032876,120]
[419140456,1774919353034,-6076.98,0.00032876,120]
[419140457,1774919353127,-6076.98,0.00032876,120]
[419140458,1774919353221,-515.01,0.00032876,120]
[419140459,1774919353317,-558.58506729,0.00032876,120]
[419140460,1774919353411,-6076.98,0.00032876,120]
[419140461,1774919353511,-515.01,0.00032876,120]
[419140462,1774919353601,-500.0,0.00032876,120]
[419140463,1774919353695,-6076.98,0.00032876,120]
[419140464,1774919353785,-515.01,0.00032876,120]
[419140465,1774919353875,-500.0,0.00032876,120]
[419140466,1774919353968,-515.01,0.00032876,120]
[419140467,1774919354060,-500.0,0.00032876,120]
[419140468,1774919354150,-6076.98,0.00032876,120]
[419140469,1774919354242,-500.0,0.00032876,120]
[419140470,1774919354338,-515.01,0.00032876,120]
[419140471,1774919354429,-500.0,0.00032876,120]
[419140472,1774919354521,-6076.98,0.00032876,120]
[419140473,1774919354611,-500.0,0.00032876,120]
[419140474,1774919354701,-500.0,0.00032876,120]
[419140475,1774919354793,-500.0,0.00032876,120]
[419140476,1774919354883,-515.01,0.00032876,120]
[419140477,1774919354973,-6076.98,0.00032876,120]
[419140478,1774919355066,-500.0,0.00032876,120]
[419140479,1774919355155,-500.0,0.00032876,120]
[419140480,1774919355247,-500.0,0.00032876,120]
[419140481,1774919355341,-500.0,0.00032876,120]
[419140482,1774919355435,-500.0,0.00032876,120]
[419140483,1774919355531,-1096.62,0.00032876,120]
[419140484,1774919355618,-515.01,0.00032876,120]
[419140485,1774919355710,-6076.98,0.00032876,120]
[419140486,1774919355795,-500.0,0.00032876,120]
[419140487,1774919355883,-500.0,0.00032876,120]
[419140488,1774919355971,-500.0,0.00032876,120]
[419140489,1774919356059,-500.0,0.00032876,120]
[419140490,1774919356153,-1096.62,0.00032876,120]
[419140491,1774919356250,-6076.98,0.00032876,120]
[419140492,1774919356342,-500.0,0.00032876,120]
[419140493,1774919356434,-500.0,0.00032876,120]
[419140494,1774919356527,-500.0,0.00032876,120]
[419140495,1774919356619,-515.01,0.00032876,120]
[419140496,1774919356713,-500.0,0.00032876,120]
[419140497,1774919356804,-500.0,0.00032876,120]
[419140498,1774919356895,-1096.62,0.00032876,120]
[419140499,1774919356985,-6076.98,0.00032876,120]
[419140500,1774919357077,-500.0,0.00032876,120]
[419140501,1774919357169,-500.0,0.00032876,120]
[419140502,1774919357260,-515.01,0.00032876,120]
[419140503,1774919357355,-500.0,0.00032876,120]
[419140504,1774919357448,-500.0,0.00032876,120]
[419140505,1774919357539,-500.0,0.00032876,120]
[419140506,1774919357633,-500.0,0.00032876,120]
[419140507,1774919357726,-6076.98,0.00032876,120]
[419140508,1774919357819,-1096.62,0.00032876,120]
[419140509,1774919357911,-515.01,0.00032876,120]
[419140510,1774919358007,-500.0,0.00032876,120]
[419140511,1774919358100,-500.0,0.00032876,120]
[419140512,1774919358194,-500.0,0.00032876,120]
[419140513,1774919358290,-500.0,0.00032876,120]
[419140514,1774919358383,-500.0,0.00032876,120]
[419140515,1774919358478,-6076.98,0.00032876,120]
[419140516,1774919358573,-500.0,0.00032876,120]
[419140517,1774919358668,-515.01,0.00032876,120]
[419140518,1774919358760,-500.0,0.00032876,120]
[419140519,1774919358849,-500.0,0.00032876,120]
[419140520,1774919358941,-500.0,0.00032876,120]
[419140521,1774919359032,-1096.62,0.00032876,120]
[419140522,1774919359124,-500.0,0.00032876,120]
[419140523,1774919359215,-500.0,0.00032876,120]
[419140524,1774919359309,-6076.98,0.00032876,120]
[419140525,1774919359405,-515.01,0.00032876,120]
[419140526,1774919359499,-500.0,0.00032876,120]
[419140527,1774919359595,-500.0,0.00032876,120]
[419140528,1774919359688,-500.0,0.00032876,120]
[419140529,1774919359779,-500.0,0.00032876,120]
[419140530,1774919359870,-500.0,0.00032876,120]
[419140531,1774919359960,-1096.62,0.00032876,120]
[419140532,1774919360050,-500.0,0.00032876,120]
[419140533,1774919360142,-515.01,0.00032876,120]
[419140534,1774919360232,-6076.98,0.00032876,120]
[419140535,1774919360325,-315.67436054,0.00032876,120]
[419140536,1774919360418,-500.0,0.00032876,120]
[419140537,1774919360511,-500.0,0.00032876,120]
[419140538,1774919360603,-500.0,0.00032876,120]
[419140539,1774919360693,-500.0,0.00032876,120]
[419140540,1774919360785,-1096.62,0.00032876,120]
[419140541,1774919360876,-500.0,0.00032876,120]
[419140542,1774919360966,-6076.98,0.00032876,120]
[419140543,1774919361062,-500.0,0.00032876,120]
[419140544,1774919361158,-515.01,0.00032876,120]
[419140545,1774919361255,-500.0,0.00032876,120]
[419140546,1774919361352,-500.0,0.00032876,120]
[419140547,1774919361446,-1096.62,0.00032876,120]
[419140548,1774919361537,-500.0,0.00032876,120]
[419140549,1774919361628,-6076.98,0.00032876,120]
[419140550,1774919361720,-500.0,0.00032876,120]
[419140551,1774919361813,-500.0,0.00032876,120]
[419140552,1774919362150,-515.01,0.00032876,120]
[419140553,1774919362240,-500.0,0.00032876,120]
[419140554,1774919362332,-500.0,0.00032876,120]
[419140555,1774919362422,-1096.62,0.00032876,120]
[419140556,1774919362508,-6076.98,0.00032876,120]
[419140557,1774919362598,-373.13212396,0.00032876,120]
[419140558,1774919362689,-500.0,0.00032876,120]
[419140559,1774919362779,-500.0,0.00032876,120]
[419140560,1774919362870,-515.01,0.00032876,120]
[419140561,1774919362959,-229.12566769,0.00032876,120]
[419140562,1774919363048,-330.8274554,0.00032876,120]
[419140563,1774919363137,-1096.62,0.00032876,120]
[419140564,1774919363229,-6076.98,0.00032876,120]
[419140565,1774919363319,-420.50023609,0.00032876,120]
[419140566,1774919363408,-500.0,0.00032876,120]
[419140567,1774919363500,-515.01,0.00032876,120]
[419140568,1774919363589,-1096.62,0.00032876,120]
[419140569,1774919363680,-500.0,0.00032876,120]
[419140570,1774919363767,-6077.1115906,0.00032876,120]
[419140571,1774919363850,-515.01,0.00032876,120]
[419140572,1774919363939,-1096.62,0.00032876,120]
[419140573,1774919364026,-641.72994329,0.00032876,120]
[419140574,1774919364115,-515.01,0.00032876,120]
[419140575,1774919364205,-1096.62,0.00032876,120]
[419140576,1774919364296,-515.01,0.00032876,120]
[419140577,1774919364387,-1096.62,0.00032876,120]
[419140578,1774919364477,-500.0,0.00032876,120]
[419140579,1774919364567,-515.01,0.00032876,120]
[419140580,1774919364654,-1096.62,0.00032876,120]
[419140581,1774919364738,-500.0,0.00032876,120]
[419140582,1774919364829,-515.01,0.00032876,120]
[419140583,1774919364915,-1096.62,0.00032876,120]
[419140584,1774919365002,-180.30200563,0.00032876,120]
[419140585,1774919365089,-515.01,0.00032876,120]
[419140586,1774919365178,-500.0,0.00032876,120]
[419140587,1774919365268,-500.0,0.00032876,120]
[419140588,1774919365358,-515.15025637,0.00032876,120]
[419140589,1774919365448,-1166.99,0.00032876,120]
[419140590,1774919365536,-1096.62,0.00032876,120]
[419140591,1774919365623,-500.0,0.00032876,120]
[419140592,1774919365713,-367.29508414,0.00032876,120]
[419140593,1774919365802,-1166.99,0.00032876,120]
[419140594,1774919365892,-1096.62,0.00032876,120]
[419140595,1774919365980,-1166.99,0.00032876,120]
[419140596,1774919366070,-1096.62,0.00032876,120]
[419140597,1774919366161,-2305.39,0.00032876,60]
[419140598,1774919366251,-500.0,0.00032876,120]
[419140599,1774919366344,-1166.99,0.00032876,120]
[419140600,1774919366437,-1096.62,0.00032876,120]
[419140601,1774919366529,-2305.39,0.00032876,60]
[419140602,1774919366620,-500.0,0.00032876,120]
[419140603,1774919366713,-500.0,0.00032876,120]
[419140604,1774919366804,-1166.99,0.00032876,120]
[419140605,1774919366893,-2305.39,0.00032876,60]
[419140606,1774919366985,-500.0,0.00032876,120]
[419140607,1774919367076,-417.58434271,0.00032876,120]
[419140608,1774919367169,-1166.99,0.00032876,120]
[419140609,1774919367261,-2305.39,0.00032876,60]
[419140610,1774919367356,-1096.62,0.00032876,120]
[419140611,1774919367450,-500.0,0.00032876,120]
[419140612,1774919367544,-1166.99,0.00032876,120]
[419140613,1774919367639,-1096.62,0.00032876,120]
[419140614,1774919367734,-1166.99,0.00032876,120]
[419140615,1774919367833,-1096.62,0.00032876,120]
[419140616,1774919367928,-2305.39,0.00032876,60]
[419140617,1774919368023,-1966.77,0.00032876,120]
[419140618,1774919368121,-1166.99,0.00032876,120]
[419140619,1774919368212,-500.0,0.00032876,120]
[419140620,1774919368309,-1096.85349796,0.00032876,120]
[419140621,1774919368405,-1166.99,0.00032876,120]
[419140622,1774919368497,-500.0,0.00032876,120]
[419140623,1774919368589,-1966.77,0.00032876,120]
[419140624,1774919368683,-2305.39,0.00032876,60]
[419140625,1774919368779,-1166.99,0.00032876,120]
[419140626,1774919368875,-1966.77,0.00032876,120]
[419140627,1774919368969,-500.0,0.00032876,120]
[419140628,1774919369063,-2305.39,0.00032876,60]
[419140629,1774919369155,-500.0,0.00032876,120]
[419140630,1774919369254,-1966.77,0.00032876,120]
[419140631,1774919369353,-500.0,0.00032876,120]
[419140632,1774919369452,-1166.99,0.00032876,120]
[419140633,1774919369547,-2305.39,0.00032876,60]
[419140634,1774919369640,-500.0,0.00032876,120]
[419140635,1774919369737,-1166.99,0.00032876,120]
[419140636,1774919369833,-500.0,0.00032876,120]
[419140637,1774919369926,-1966.77,0.00032876,120]
[419140638,1774919370019,-500.0,0.00032876,120]
[419140639,1774919370112,-2305.39,0.00032876,60]
[419140640,1774919370211,-500.0,0.00032876,120]
[419140641,1774919370306,-1166.99,0.00032876,120]
[419140642,1774919370398,-500.0,0.00032876,120]
[419140643,1774919370489,-500.0,0.00032876,120]
[419140644,1774919370584,-1966.77,0.00032876,120]
[419140645,1774919370677,-2305.39,0.00032876,60]
[419140646,1774919370778,-500.0,0.00032876,120]
[419140647,1774919370872,-1166.99,0.00032876,120]
[419140648,1774919370963,-1966.77,0.00032876,120]
[419140649,1774919371054,-3663.15,0.00032876,120]
[419140650,1774919371147,-500.0,0.00032876,120]
[419140651,1774919371241,-500.0,0.00032876,120]
[419140652,1774919371334,-2305.39,0.00032876,60]
[419140653,1774919371425,-1166.99,0.00032876,120]
[419140654,1774919371517,-500.0,0.00032876,120]
[419140655,1774919371609,-1966.77,0.00032876,120]
[419140656,1774919371700,-500.0,0.00032876,120]
[419140657,1774919371794,-3663.15,0.00032876,120]
[419140658,1774919371883,-500.0,0.00032876,120]
[419140659,1774919371975,-2305.39,0.00032876,60]
[419140660,1774919372066,-1166.99,0.00032876,120]
[419140661,1774919372159,-500.0,0.00032876,120]
[419140662,1774919372251,-1966.77,0.00032876,120]
[419140663,1774919372347,-3663.15,0.00032876,120]
[419140664,1774919372440,-500.0,0.00032876,120]
[419140665,1774919372535,-2305.39,0.00032876,60]
[419140666,1774919372630,-500.0,0.00032876,120]
[419140667,1774919372722,-1166.99,0.00032876,120]
[419140668,1774919372812,-204.2335162,0.00032876,120]
[419140669,1774919373349,-3663.15,0.00032876,120]
[419140670,1774919373446,-500.0,0.00032876,120]
[419140671,1774919373552,-2305.39,0.00032876,60]
[419140672,1774919373647,-1966.77,0.00032876,120]
[419140673,1774919373741,-1166.99,0.00032876,120]
[419140674,1774919373833,-3663.15,0.00032876,120]
[419140675,1774919373926,-2305.39,0.00032876,60]
[419140676,1774919374019,-1966.77,0.00032876,120]
[419140677,1774919374109,-287.73725368,0.00032876,120]
[419140678,1774919374205,-1166.99,0.00032876,120]
[419140679,1774919374299,-3663.15,0.00032876,120]
[419140680,1774919374394,-2305.39,0.00032876,60]
[419140681,1774919374486,-1966.77,0.00032876,120]
[419140682,1774919374580,-1166.99,0.00032876,120]
[419140683,1774919374674,-3663.15,0.00032876,120]
[419140684,1774919374768,-1966.77,0.00032876,120]
[419140685,1774919374860,-1166.99,0.00032876,120]
[419140686,1774919374948,-3663.15,0.00032876,120]
[419140687,1774919375040,-1966.77,0.00032876,120]
[419140688,1774919375131,-500.0,0.00032876,120]
[419140689,1774919375226,-3663.15,0.00032876,120]
[419140690,1774919375320,-1966.77,0.00032876,120]
[419140691,1774919375413,-3663.15,0.00032876,120]
[419140692,1774919375507,-1166.99,0.00032876,120]
[419140693,1774919375600,-500.0,0.00032876,120]
[419140694,1774919375693,-1966.77,0.00032876,120]
[419140695,1774919375783,-1167.20702713,0.00032876,120]
[419140696,1774919375873,-500.0,0.00032876,120]
[419140697,1774919375963,-500.0,0.00032876,120]
[419140698,1774919376056,-360.49394242,0.00032876,120]
[419140699,1774919376149,-1966.77,0.00032876,120]
[419140700,1774919376242,-500.0,0.00032876,120]
[419140701,1774919376332,-500.0,0.00032876,120]
[419140702,1774919376421,-3663.15,0.00032876,120]
[419140703,1774919376516,-1966.77,0.00032876,120]
[419140704,1774919376607,-500.0,0.00032876,120]
[419140705,1774919376712,-500.0,0.00032876,120]
[419140706,1774919376805,-3663.15,0.00032876,120]
[419140707,1774919376897,-500.0,0.00032876,120]
[419140708,1774919376988,-1966.77,0.00032876,120]
[419140709,1774919377081,-500.0,0.00032876,120]
[419140710,1774919377173,-500.0,0.00032876,120]
[419140711,1774919377289,-3663.15,0.00032876,120]
[419140712,1774919377387,-1966.77,0.00032876,120]
[419140713,1774919377481,-439.36198769,0.00032876,120]
[419140714,1774919377571,-500.0,0.00032876,120]
[419140715,1774919377662,-3663.15,0.00032876,120]
[419140716,1774919377755,-500.0,0.00032876,120]
[419140717,1774919377848,-1966.77,0.00032876,120]
[419140718,1774919377939,-500.0,0.00032876,120]
[419140719,1774919378029,-500.0,0.00032876,120]
[419140720,1774919378119,-3663.15,0.00032876,120]
[419140721,1774919378211,-1966.77,0.00032876,120]
[419140722,1774919378302,-500.0,0.00032876,120]
[419140723,1774919378393,-500.0,0.00032876,120]
[419140724,1774919378487,-3663.15,0.00032876,120]
[419140725,1774919378578,-2305.39,0.00032876,60]
[419140726,1774919378676,-500.0,0.00032876,120]
[419140727,1774919378768,-1966.77,0.00032876,120]
[419140728,1774919378860,-500.0,0.00032876,120]
[419140729,1774919378950,-3663.15,0.00032876,120]
[419140730,1774919379042,-2305.39,0.00032876,60]
[419140731,1774919379135,-500.0,0.00032876,120]
[419140732,1774919379229,-1966.96488902,0.00032876,120]
[419140733,1774919379324,-500.0,0.00032876,120]
[419140734,1774919379416,-3663.15,0.00032876,120]
[419140735,1774919379509,-500.0,0.00032876,120]
[419140736,1774919379600,-2305.39,0.00032876,60]
[419140737,1774919379692,-500.0,0.00032876,120]
[419140738,1774919379784,-3663.15,0.00032876,120]
[419140739,1774919379875,-2305.39,0.00032876,60]
[419140740,1774919379967,-566.50126762,0.00032876,120]
[419140741,1774919380059,-500.0,0.00032876,120]
[419140742,1774919380148,-3663.15,0.00032876,120]
[419140743,1774919380241,-2305.39,0.00032876,60]
[419140744,1774919380335,-557.37718957,0.00032876,120]
[419140745,1774919380429,-3663.15,0.00032876,120]
[419140746,1774919380522,-2305.39,0.00032876,60]
[419140747,1774919380618,-3663.15,0.00032876,120]
[419140748,1774919380710,-2305.39,0.00032876,60]
[419140749,1774919380803,-3663.15,0.00032876,120]
[419140750,1774919380894,-2305.54709336,0.00032876,60]
[419140751,1774919380985,-3663.15341666,0.00032876,120]
[419140752,1774919381074,-1000.0,0.00032877,120]
[419140753,1774919381168,-2326.1,0.00032877,120]
[419140754,1774919381261,-200.54,0.00032877,30]
[419140755,1774919381352,-250.0,0.00032877,30]
[419140756,1774919381446,-250.0,0.00032877,30]
[419140757,1774919381540,-250.0,0.00032877,30]
[419140758,1774919381632,-250.0,0.00032877,30]
[419140759,1774919381723,-250.0,0.00032877,30]
[419140760,1774919381810,-250.0,0.00032877,30]
[419140761,1774919381894,-250.0,0.00032877,30]
[419140762,1774919381983,-250.0,0.00032877,30]
[419140763,1774919382073,-253.80652358,0.00032877,30]
[419140764,1774919382161,-349.83761079,0.000329,120]
[419140765,1774919382254,-1042.57,0.00032908,120]
[419140766,1774919382347,-77543.41,0.00033,30]
[419140767,1774919382437,-195.95905333,0.00033,120]
[419140768,1774919382529,-399.55277871,0.00033,120]
[419140769,1774919382621,-461.73006782,0.00033,120]
[419140770,1774919382712,-213.40545215,0.00033,120]
[419140771,1774919382804,-564.35867539,0.00033,120]
[419140772,1774919382896,-334.20734563,0.00033,120]
[419140773,1774919382986,-178.95536317,0.00033,120]
[419140774,1774919383076,-3374.14605434,0.00033,120]
[419140775,1774919383169,-217.46186066,0.00033,120]
[419140776,1774919383261,-174.41726659,0.00033,60]
[419140777,1774919383355,-473.72870805,0.00033,30]
[419140778,1774919383449,-1039.0,0.00033,120]
[419140779,1774919383542,-702.75889552,0.00033,120]
[419140780,1774919383634,-3585550.41075721,0.00033,120]
[419140781,1774919407929,8387.9323805,9.5e-05,3]
[419140788,1774919432058,-773.65135523,9.5e-05,3]
[419140789,1774919432317,-901.23418243,9.5e-05,3]
[419140790,1774919432329,-1389.08734021,9.5e-05,3]
[419140793,1774919432340,-4435.16186071,9.5e-05,3]
[419140794,1774919432351,-719.62920142,9.5e-05,3]
[419140797,1774919432530,-387.6034373,9.5e-05,3]
[419140798,1774919432571,-2379.26744176,9.5e-05,3]
[419140799,1774919432583,-448.62046988,9.5e-05,3]
[419140800,1774919432609,-596.66074998,9.5e-05,3]
[419140801,1774919432620,-686.19694648,9.5e-05,3]
[419140802,1774919432631,-895.41,9.5e-05,3]
[419140803,1774919432752,-445.15864766,9.5e-05,3]
[419140804,1774919432763,-1999.23286436,9.5e-05,3]
[419140822,1774919438507,-2536.17867475,9.5e-05,3]
[419140851,1774919440933,-37716.36856512,9.5e-05,3]
[419140852,1774919440943,-166.66,0.00014057,2]
[419140853,1774919440952,-195.0,0.00014205,2]
[419140854,1774919440961,-300.0,0.00014205,2]
[419140855,1774919440970,-166.66,0.00014353,2]
[419140856,1774919440979,-195.0,0.00014358,2]
[419140857,1774919440989,-195.0,0.00014358,2]
[419140858,1774919441004,-195.0,0.00014358,2]
[419140859,1774919441013,-300.0,0.00014358,2]
[419140860,1774919441022,-300.0,0.00014358,2]
[419140861,1774919441032,-300.0,0.00014358,2]
[419140862,1774919441041,-200.89540086,0.00014394,2]
[419140863,1774919441051,-503.04563451,0.00014494,3]
[419140864,1774919441060,-305.794966,0.00014494,2]
[419140865,1774919441071,-300.0,0.00014599,2]
[419140866,1774919441080,-1200.0,0.00014599,2]
[419140867,1774919441089,-300.0,0.00014599,2]
[419140868,1774919441098,-15228.362,0.000146,2]
[419140869,1774919441108,-6729.9052,0.000146,2]
[419140870,1774919441117,-150.0,0.000146,2]
[419140871,1774919441126,-166.66,0.00014649,2]
[419140872,1774919441136,-151.0,0.00014691,2]
[419140873,1774919441147,-151.0,0.00014691,2]
[419140874,1774919441156,-150.0,0.00014716,2]
[419140875,1774919441166,-10175.2,0.00014717,2]
[419140876,1774919441176,-1000.0,0.000148,2]
[419140877,1774919441186,-200.0,0.00014827,2]
[419140878,1774919441197,-166.66,0.00014945,2]
[419140879,1774919441207,-3043.03841955,0.00015,2]
[419140880,1774919441217,-799.17,0.00015104,2]
[419140881,1774919441228,-3240.0,0.00015218,2]
[419140882,1774919441237,-166.66,0.00015241,2]
[419140883,1774919441247,-185.37,0.00015299,2]
[419140884,1774919441256,-2000.0,0.000153,2]
[419140886,1774919441266,-164.87,0.000153,2]
[419140887,1774919441275,-1517.64,0.000153,2]
[419140888,1774919441284,-512.22004711,0.000154,2]
[419140889,1774919441293,-2689.83402354,0.00015463,2]
[419140890,1774919441303,-195.0,0.00015463,2]
[419140891,1774919441312,-300.0,0.00015463,2]
[419140892,1774919441322,-500.0,0.00015499,2]
[419140893,1774919441334,-500.0,0.00015499,2]
[419140894,1774919441344,-500.0,0.00015499,2]
[419140895,1774919441355,-767.44416053,0.000155,3]
[419140896,1774919441364,-1230.58591204,0.000155,2]
[419140897,1774919441374,-166.66,0.00015537,2]
[419140898,1774919441384,-4461.68,0.00015585,2]
[419140899,1774919441392,-500.0,0.00015595,2]
[419140900,1774919441402,-500.0,0.00015595,2]
[419140901,1774919441413,-7157.59902827,0.00015666,2]
[419140902,1774919441454,-1271.86348119,0.00015666,2]
[419140908,1774919443282,-546.0,0.00015666,2]
[419140909,1774919443338,-989.29856,0.00015666,2]
[419140910,1774919443351,-35.23893054,0.00015666,2]
[419140911,1774919443361,-196.0175,0.000158,7]
[419140912,1774919443378,-101.12509357,0.00015807,2]
[419140913,1774919443412,-2156.47899539,0.00015807,2]
[419140914,1774919443422,-255.0,0.00015835,2]
[419140915,1774919443432,-500.0,0.000159,2]
[419140916,1774919443443,-4581.1449,0.000159,3]
[419140917,1774919443453,-165.56296308,0.000159,2]
[419140918,1774919443463,-6194.30939068,0.00015901,2]
[419140919,1774919443473,-2290.1814199,0.00015901,2]
[419140920,1774919443611,-5051.51332886,0.00015901,2]
[419140921,1774919443621,-155.13864439,0.0001599,2]
[419140922,1774919443631,-230.98684083,0.00015999,2]
[419140923,1774919443641,-151.28509302,0.00015999,2]
[419140924,1774919443652,-500.0,0.00015999,2]
[419140925,1774919443662,-500.0,0.00015999,2]
[419140926,1774919443672,-195.2559898,0.00015999,2]
[419140927,1774919443682,-500.0,0.00015999,2]
[419140928,1774919443692,-500.0,0.00015999,2]
[419140929,1774919443702,-500.0,0.00015999,2]
[419140930,1774919443713,-500.0,0.00015999,2]
[419140931,1774919443723,-500.0,0.00015999,2]
[419140932,1774919443733,-245.22498485,0.00015999,2]
[419140933,1774919443743,-500.0,0.00015999,2]
[419140934,1774919443754,-500.0,0.00015999,2]
[419140935,1774919443764,-500.0,0.00015999,2]
[419140936,1774919443774,-500.0,0.00015999,2]
[419140938,1774919443783,-500.0,0.00015999,2]
[419140939,1774919443793,-500.0,0.00015999,2]
[419140940,1774919443803,-500.0,0.00015999,2]
[419140941,1774919443813,-500.0,0.00015999,2]
[419140942,1774919443823,-500.0,0.00015999,2]
[419140943,1774919443833,-500.0,0.00015999,2]
[419140945,1774919443843,-500.0,0.00015999,2]
[419140946,1774919443853,-500.0,0.00015999,2]
[419140947,1774919443863,-500.0,0.00015999,2]
[419140948,1774919443873,-500.0,0.00015999,2]
[419140949,1774919443883,-500.0,0.00015999,2]
[419140950,1774919443894,-500.0,0.00015999,2]
[419140951,1774919443904,-500.0,0.00015999,2]
[419140952,1774919443914,-500.0,0.00015999,2]
[419140953,1774919443924,-500.0,0.00015999,2]
[419140954,1774919443935,-170.55573387,0.00015999,2]
[419140955,1774919443945,-500.0,0.00015999,2]
[419140956,1774919443955,-500.0,0.00015999,2]
[419140957,1774919443965,-186.40005213,0.00015999,2]
[419140958,1774919443979,-500.0,0.00015999,2]
[419140959,1774919443989,-1969.94,0.00016,2]
[419140960,1774919443999,-2069264.05249864,0.00016,2]
[419140961,1774919444021,-887.00102635,0.00016,2]
[419140962,1774919444047,-4696.78368281,0.00016,2]
[419140965,1774919446023,-2188.68981121,0.00016,2]
[419140966,1774919446081,-12852.35667256,0.00016,2]
[419140997,1774919453551,150.0,0.000105,30]
[419140998,1774919453880,195.84,0.000105,30]
[419141001,1774919783488,1600.0,0.00010085,2]
[419141002,1774919817653,184.44384423,0.0001,2]
[419141003,1774919846434,1590.0,9.797e-05,2]
[419141004,1774919846867,2900.0,0.00010116,2]
[419141005,1774919847372,2800.0,0.00010392,2]
[419141006,1774919847900,1100.0,0.00010524,2]
[419141007,1774919848467,1800.0,0.0001075,2]
[419141008,1774919850629,286.33522854,0.0001,2]
[419141009,1774919880111,1309.33266599,0.0001,2]
[419141010,1774919912166,1055.89,9.67e-05,2]
[419141011,1774919912550,1100.0,0.00010597,2]
[419141012,1774919940102,157.36415391,0.0001,2]
[419141013,1774920443114,-512.52463155,0.00010909,2]
[419141014,1774920443135,-1200.0,0.00010988,2]
[419141015,1774920443156,-600.0,0.00010989,2]
[419141016,1774920443178,-600.0,0.00010989,2]
[419141017,1774920443200,-600.0,0.00010989,2]
[419141018,1774920443221,-182.80572961,0.00010989,2]
[419141019,1774920443243,-300.0,0.00011007,2]
[419141020,1774920443262,-1200.0,0.00011008,2]
[419141021,1774920443282,-254.0,0.00011008,2]
[419141022,1774920443303,-300.0,0.00011008,2]
[419141023,1774920443325,-2784.7147853,0.00011009,2]
[419141024,1774920443345,-150.0,0.00011009,2]
[419141025,1774920443368,-5000.0,0.00011009,2]
[419141026,1774920443390,-250.0,0.00011009,2]
[419141027,1774920443411,-276.0,0.00011009,2]
[419141028,1774920443431,-150.0,0.00011009,2]
[419141029,1774920443452,-3440.0,0.00011022,2]
[419141030,1774920443473,-150.0,0.00011022,2]
[419141031,1774920443495,-5000.0,0.00011037,2]
[419141032,1774920443517,-5000.0,0.00011037,2]
[419141033,1774920443538,-150.0,0.00011135,2]
[419141034,1774920443560,-600.0,0.00011136,2]